bitfinex-derivatives/quotes_ETHF0:USTF0_20250103
["timestamp","ask_amount","ask_price","bid_price","bid_amount"]
[1735917054955,0.28257,3541.5,3541.4,3.2078]
[1735917055551,0.70636,3541.9,3540.9,3.2078]
[1735917055752,0.28261,3541.0,3540.9,3.2078]
[1735917056053,0.70638,3541.8,3540.9,3.2078]
[1735917056254,0.28261,3541.1,3540.9,3.2078]
[1735917056446,0.28261,3541.0,3540.9,3.2078]
[1735917056649,4.5178,3541.7,3540.9,3.2078]
[1735917056948,0.28258,3541.4,3540.9,3.49042]
[1735917057150,0.4751,3542.1,3541.1,0.2826]
[1735917057351,1.7851,3542.1,3541.1,3.4904]
[1735917057550,3.91407,3542.4,3540.2,1.31]
[1735917057551,3.2078,3542.4,3541.7,3.2078]
[1735917057751,0.28251,3542.3,3541.8,3.2078]
[1735917057946,0.28251,3542.3,3541.8,0.28255]
[1735917058158,0.28248,3542.7,3542.2,3.2078]
[1735917058454,0.2825,3542.4,3542.2,3.2078]
[1735917058656,0.2825,3542.5,3542.3,3.2078]
[1735917059156,0.2825,3542.4,3541.9,3.2078]
[1735917059355,1.31,3542.8,3541.7,3.2078]
[1735917059653,3.2078,3542.7,3541.7,3.2078]
[1735917059857,1.31,3542.8,3541.7,3.2078]
[1735917060052,0.28253,3542.0,3541.7,3.2078]
[1735917060257,3.2078,3542.5,3541.7,3.2078]
[1735917060659,0.28252,3542.2,3541.7,3.49036]
[1735917060858,0.7062,3542.7,3541.7,3.2078]
[1735917061057,1.31,3542.8,3541.7,3.2078]
[1735917061058,0.28255,3541.8,3541.7,3.2078]
[1735917061249,0.70622,3542.6,3540.8,3.2078]
[1735917061250,4.5388,3542.0,3540.8,3.2078]
[1735917061455,3.2078,3541.6,3540.4,3.2078]
[1735917061659,3.2078,3540.7,3539.9,3.2078]
[1735917061860,0.28271,3539.9,3539.4,6.92812386]
[1735917062061,0.28271,3539.8,3539.4,3.2078]
[1735917062354,3.2078,3540.3,3539.4,3.2078]
[1735917062555,0.70664,3540.5,3539.0,3.2078]
[1735917062556,3.2078,3540.1,3539.0,3.2078]
[1735917062762,3.2078,3539.6,3538.6,3.2078]
[1735917063461,0.2828,3538.7,3538.6,3.2078]
[1735917063760,3.2078,3539.2,3538.1,3.2078]
[1735917063958,3.2078,3539.2,3538.1,3.49061]
[1735917063959,0.28277,3538.7,3538.1,3.49061]
[1735917064155,0.28278,3538.6,3538.1,3.2078]
[1735917064355,3.2078,3539.2,3538.1,3.2078]
[1735917064559,1.331,3539.7,3538.6,3.2078]
[1735917064758,0.28275,3539.0,3538.6,3.2078]
[1735917064961,1.331,3539.2,3538.1,3.2078]
[1735917065258,1.331,3539.1,3538.1,3.2078]
[1735917065465,4.5388,3539.1,3538.1,3.2078]
[1735917065658,3.2078,3539.0,3538.1,3.2078]
[1735917065856,1.331,3538.9,3538.1,3.2078]
[1735917066158,0.28281,3538.2,3538.1,3.2078]
[1735917066560,2.03789,3538.9,3538.1,3.2078]
[1735917066759,0.28281,3538.2,3538.1,3.2078]
[1735917066960,0.2828,3538.3,3538.1,3.2078]
[1735917067159,1.331,3538.5,3538.1,3.2078]
[1735917067366,0.28279,3538.4,3538.1,3.2078]
[1735917067562,0.28279,3538.5,3538.1,3.2078]
[1735917067762,1.331,3538.7,3538.1,3.2078]
[1735917067966,0.28278,3538.6,3538.1,3.49061]
[1735917068164,1.331,3538.7,3538.1,3.2078]
[1735917068359,1.15632,3539.3,3538.1,3.2078]
[1735917068560,3.2078,3539.0,3538.1,3.2078]
[1735917068762,0.4495,3539.3,3538.1,3.2078]
[1735917069069,0.28273,3539.2,3538.9,3.2078]
[1735917069260,3.2078,3539.5,3538.1,3.2078]
[1735917069455,3.2078,3539.5,3538.7,3.2078]
[1735917069660,3.2078,3539.1,3538.2,3.2078]
[1735917069867,0.70689,3538.9,3537.7,3.2078]
[1735917070062,0.28281,3538.2,3537.7,3.2078]
[1735917070258,0.28283,3538.0,3537.7,3.2078]
[1735917070464,0.28281,3538.2,3537.7,3.49064]
[1735917070662,0.28281,3538.3,3537.7,3.49064]
[1735917070967,0.2828,3538.4,3538.1,3.2078]
[1735917071265,3.2078,3539.8,3538.1,3.2078]
[1735917071468,0.2827,3539.6,3539.0,0.28274]
[1735917071670,0.28271,3539.5,3538.8,3.2078]
[1735917071867,0.28269,3539.7,3539.4,3.2078]
[1735917072070,1.332,3540.3,3539.4,3.2078]
[1735917072367,0.28274,3539.2,3538.9,3.2078]
[1735917072561,0.70671,3539.9,3538.9,3.2078]
[1735917072873,3.2078,3540.0,3538.9,3.2078]
[1735917073059,3.2078,3540.0,3539.4,3.2078]
[1735917073365,0.2827,3539.7,3539.4,3.2078]
[1735917073572,1.332,3540.3,3539.4,3.2078]
[1735917073762,0.2827,3539.6,3539.0,6.268881]
[1735917073962,0.28269,3539.8,3539.4,3.2078]
[1735917074162,4.5398,3540.3,3539.4,3.2078]
[1735917074364,0.70663,3540.2,3539.0,5.986141]
[1735917074571,4.5398,3540.3,3539.0,5.986141]
[1735917075069,0.28268,3539.9,3539.4,3.2078]
[1735917075269,0.4634,3540.5,3539.4,3.2078]
[1735917075476,3.2078,3540.3,3539.2,3.2078]
[1735917075772,0.70663,3540.2,3539.2,3.2078]
[1735917076071,3.2078,3540.3,3539.2,3.49053]
[1735917076275,0.2827,3539.6,3539.2,3.49052]
[1735917076565,0.2827,3539.6,3539.2,3.2078]
[1735917076971,1.332,3540.0,3539.2,3.2078]
[1735917077160,0.28266,3540.2,3539.7,0.28269]
[1735917077369,0.0196,3540.6,3540.0,3.2078]
[1735917077562,0.0196,3540.6,3540.4,3.2078]
[1735917077765,0.0196,3540.6,3540.5,0.28262]
[1735917077976,0.0196,3540.6,3540.4,3.49043]
[1735917078269,0.0196,3540.6,3540.4,3.2078]
[1735917078568,0.28262,3540.5,3540.0,3.061001]
[1735917078769,0.28264,3540.3,3540.0,2.778341]
[1735917079067,0.0196,3540.6,3539.9,3.2078]
[1735917079261,0.28264,3540.4,3540.0,0.28266]
[1735917079462,0.30222,3540.6,3540.0,0.28266]
[1735917079664,0.0196,3540.6,3540.2,3.2078]
[1735917079864,0.28264,3540.4,3540.2,3.2078]
[1735917080279,0.0196,3540.6,3540.2,3.2078]
[1735917080472,0.28263,3540.5,3540.2,3.2078]
[1735917080679,0.0196,3540.6,3540.2,3.2078]
[1735917080983,0.28267,3540.0,3539.8,3.2078]
[1735917081481,0.70657,3540.5,3539.3,3.2078]
[1735917081672,3.2078,3540.2,3539.3,3.2078]
[1735917081982,0.28269,3539.8,3539.4,0.28271]
[1735917082176,0.28267,3540.0,3539.6,0.28269]
[1735917082379,0.28268,3539.8,3539.4,0.28271]
[1735917082585,0.70661,3540.3,3539.4,0.28271]
[1735917082778,0.70659,3540.4,3539.3,3.2078]
[1735917082979,3.2078,3540.1,3539.3,3.2078]
[1735917083185,40.8,3540.2,3539.3,3.2078]
[1735917083383,40.8,3540.2,3539.7,3.49048]
[1735917083678,3.2078,3540.5,3539.7,3.2078]
[1735917083986,0.28268,3539.8,3539.7,3.2078]
[1735917085281,40.8,3540.5,3539.7,3.2078]
[1735917085482,0.28264,3540.3,3540.0,0.28266]
[1735917085784,2.03849,3540.9,3539.7,3.2078]
[1735917085979,0.70655,3540.6,3539.7,3.2078]
[1735917086386,0.28266,3540.0,3539.3,3.2078]
[1735917086584,1.332,3540.1,3539.7,3.2078]
[1735917086784,0.28268,3539.9,3539.7,3.2078]
[1735917086985,1.61466,3540.1,3539.7,0.28268]
[1735917087186,1.332,3540.1,3539.4,3.2078]
[1735917087381,1.61466,3540.1,3539.7,0.28268]
[1735917087583,1.332,3540.1,3539.4,3.2078]
[1735917087780,0.28266,3540.0,3539.9,3.2078]
[1735917088183,1.332,3540.5,3539.0,2.778341]
[1735917088184,3.2078,3540.4,3539.4,3.2078]
[1735917088389,0.28269,3539.8,3539.5,0.2827]
[1735917088580,0.2827,3539.6,3539.4,3.2078]
[1735917088781,0.28266,3540.1,3539.4,3.49051]
[1735917088980,0.70663,3540.2,3539.4,3.2078]
[1735917089181,0.98931,3540.1,3539.4,3.2078]
[1735917089385,0.2827,3539.5,3539.4,3.2078]
[1735917089788,0.70669,3539.9,3539.0,5.986141]
[1735917090090,3.2078,3540.4,3539.0,5.986141]
[1735917090279,0.28272,3539.4,3539.1,0.37113134]
[1735917090487,0.28272,3539.4,3539.2,0.08840007]
[1735917090689,0.28272,3539.4,3539.3,0.08840007]
[1735917090690,0.28271,3539.4,3539.3,0.08840007]
[1735917090988,3.91458,3539.5,3539.3,0.08840354]
[1735917091189,0.28277,3538.7,3538.6,3.2078]
[1735917091484,1.32,3539.4,3538.6,3.29621546]
[1735917091788,42.12,3539.4,3538.7,0.08841546]
[1735917091979,0.70668,3540.0,3539.0,3.2078]
[1735917092180,1.32,3539.9,3539.4,3.2078]
[1735917092384,41.5066,3540.4,3539.6,0.2827]
[1735917092685,41.5066,3540.4,3539.7,0.08841546]
[1735917092686,0.28268,3539.8,3539.7,0.08841546]
[1735917093082,44.29048,3539.8,3539.7,0.08841546]
[1735917093280,41.08268,3539.8,3539.7,0.08841546]
[1735917093587,0.28268,3539.8,3539.7,0.08841546]
[1735917093991,2.02659,3540.4,3539.7,0.08841546]
[1735917094192,2.02659,3540.4,3539.3,3.2078]
[1735917094193,0.28267,3540.0,3539.8,0.3468008]
[1735917094395,0.28267,3540.0,3539.9,0.3468008]
[1735917094586,1.32,3540.3,3539.9,0.3468008]
[1735917094886,0.28266,3540.1,3540.0,0.3468008]
[1735917095387,1.32,3540.3,3540.0,0.3468008]
[1735917095594,0.28265,3540.2,3540.1,0.3468008]
[1735917098393,0.70663,3540.2,3539.1,3.2078]
[1735917098595,0.4669,3540.5,3539.5,3.2078]
[1735917098798,0.28264,3540.3,3540.0,0.28266]
[1735917098996,1.32,3540.4,3539.9,3.2078]
[1735917099295,3.2078,3541.1,3540.3,3.2078]
[1735917100197,40.8,3541.0,3540.3,3.2078]
[1735917100493,0.28263,3540.4,3540.3,3.2078]
[1735917100695,3.2078,3540.7,3540.0,2.48415743]
[1735917100885,0.28262,3540.6,3540.0,0.28266]
[1735917101086,4.5278,3540.7,3539.9,3.2078]
[1735917101291,0.28263,3540.5,3540.3,3.2078]
[1735917101493,0.0198,3540.4,3540.3,3.2078]
[1735917101691,0.30243,3540.4,3540.3,3.2078]
[1735917102291,0.0198,3540.4,3540.3,3.49044]
[1735917102487,0.0198,3540.4,3540.3,3.2078]
[1735917103788,0.0198,3540.4,3540.3,0.43056959]
[1735917103993,0.30243,3540.4,3540.3,0.43056959]
[1735917105900,0.0198,3540.4,3540.3,3.63836959]
[1735917106600,0.30243,3540.4,3540.3,3.63836959]
[1735917106995,0.30243,3540.4,3540.3,0.43056959]
[1735917107199,0.28269,3539.7,3539.6,4.24368662]
[1735917107399,0.2827,3539.6,3539.5,4.24368662]
[1735917107590,43.56685743,3539.6,3539.5,0.7738103]
[1735917107900,0.28272,3539.3,3539.2,4.26129994]
[1735917108095,3.49052,3539.3,3539.2,0.87682484]
[1735917108299,0.70686,3539.1,3538.6,10.6092165]
[1735917108497,0.70686,3539.1,3538.6,10.0347165]
[1735917108498,5.97472743,3538.7,3538.6,10.0347165]
[1735917108698,0.70698,3538.5,3537.3,3.6796]
[1735917108899,3.2078,3538.1,3537.3,3.6796]
[1735917109107,4.5278,3538.1,3537.3,0.4718]
[1735917109397,0.28285,3537.7,3537.3,3.6796]
[1735917109603,1.32,3538.1,3537.3,3.6796]
[1735917110194,0.28285,3537.7,3537.3,3.6796]
[1735917110398,0.28282,3538.0,3537.3,3.2078]
[1735917110696,3.2078,3537.9,3536.9,3.2078]
[1735917110899,0.28284,3537.8,3537.0,0.2829]
[1735917111097,4.5278,3538.1,3536.9,3.2078]
[1735917111407,0.28288,3537.4,3536.9,3.2078]
[1735917111698,9.45074179,3538.0,3536.9,3.2078]
[1735917111902,2.21426309,3538.0,3537.4,0.28287]
[1735917112099,2.21426309,3538.0,3537.6,0.28285]
[1735917112397,2.49708309,3538.0,3537.5,0.28286]
[1735917112601,3.53426309,3538.1,3537.3,3.2078]
[1735917112997,3.53426309,3538.1,3537.7,0.28285]
[1735917113199,3.53426309,3538.1,3537.7,3.2078]
[1735917113401,2.21426309,3538.1,3537.7,3.2078]
[1735917113608,2.21426309,3538.1,3537.7,3.49064]
[1735917113901,0.28284,3537.8,3537.2,0.28289]
[1735917114107,0.28284,3537.8,3537.0,3.2078]
[1735917114108,0.28288,3537.3,3537.0,3.2078]
[1735917114301,0.2829,3537.1,3537.0,3.2078]
[1735917114600,3.2078,3537.2,3536.3,3.2078]
[1735917114807,0.28291,3537.0,3536.3,3.2078]
[1735917115000,0.28293,3536.8,3536.3,3.2078]
[1735917115194,3.2078,3537.2,3536.3,3.2078]
[1735917115195,1.32,3536.9,3536.3,3.2078]
[1735917115395,0.28298,3536.1,3535.8,3.2078]
[1735917115899,1.321,3536.1,3535.9,0.28299]
[1735917116302,2.77777035,3536.9,3535.8,3.2078]
[1735917116500,1.321,3536.4,3535.8,3.2078]
[1735917116699,1.321,3536.4,3535.9,0.28299]
[1735917116896,1.321,3536.4,3536.0,0.28298]
[1735917117307,1.321,3536.4,3535.8,3.2078]
[1735917118609,0.28296,3536.3,3535.8,3.2078]
[1735917118802,1.321,3536.2,3535.8,3.2078]
[1735917119001,1.321,3536.2,3535.8,3.4908]
[1735917119207,1.321,3536.2,3535.8,3.2078]
[1735917119607,0.28295,3536.5,3535.9,0.28299]
[1735917119809,1.60396,3536.4,3535.8,3.4908]
[1735917120013,1.321,3536.4,3536.0,0.28298]
[1735917120510,0.28295,3536.4,3535.8,3.2078]
[1735917120705,0.28296,3536.4,3535.8,3.49079]
[1735917120912,1.58595,3536.5,3535.9,0.28299]
[1735917121113,1.303,3536.5,3535.8,3.2078]
[1735917121315,0.28299,3535.9,3535.8,3.2078]
[1735917121511,0.28304,3535.4,3535.1,0.4535]
[1735917121715,1.303,3535.5,3535.0,3.2078]
[1735917122208,1.303,3535.5,3534.2,0.4591]
[1735917122209,3.2078,3535.2,3534.2,0.4591]
[1735917122411,0.28314,3534.1,3533.9,3.2078]
[1735917122609,3.91551,3534.8,3533.6,0.28317]
[1735917122610,1.303,3534.3,3533.6,0.28317]
[1735917122817,1.303,3534.3,3533.4,3.2078]
[1735917123010,1.303,3534.3,3533.4,3.49099]
[1735917123011,0.28315,3534.0,3533.4,3.49099]
[1735917123212,1.303,3534.3,3533.4,3.2078]
[1735917123613,0.28313,3534.2,3533.8,3.2078]
[1735917123924,3.2078,3535.2,3533.9,2.77777035]
[1735917124215,3.2078,3535.2,3534.4,3.2078]
[1735917124409,3.2078,3535.2,3534.5,0.4995]
[1735917124611,3.2078,3535.2,3533.9,3.2078]
[1735917124915,0.28309,3534.7,3534.3,3.2078]
[1735917125110,1.303,3534.7,3534.3,3.2078]
[1735917125813,1.303,3534.7,3534.3,3.49092]
[1735917126005,1.303,3534.7,3534.3,3.2078]
[1735917126211,3.2078,3534.4,3533.7,3.7073]
[1735917126411,0.28316,3533.8,3533.7,3.2078]
[1735917126612,0.28319,3533.5,3532.9,3.2078]
[1735917126809,1.303,3533.8,3532.9,3.2078]
[1735917127012,0.2832,3533.4,3532.9,3.2078]
[1735917127315,0.28321,3533.2,3532.9,3.2078]
[1735917127612,1.303,3533.8,3532.9,3.2078]
[1735917128016,0.28317,3533.7,3533.1,0.28321]
[1735917128309,1.303,3533.8,3533.4,3.2078]
[1735917128511,3.2078,3534.5,3533.4,3.2078]
[1735917128512,0.28315,3533.9,3533.4,3.2078]
[1735917128709,1.303,3534.1,3533.4,3.2078]
[1735917128915,0.28316,3533.9,3533.4,3.49099]
[1735917129310,1.303,3534.1,3533.6,0.28317]
[1735917129311,0.28314,3534.1,3533.6,0.28317]
[1735917129515,3.2078,3534.5,3533.4,3.2078]
[1735917129811,1.303,3534.4,3533.4,3.2078]
[1735917130012,1.303,3534.4,3533.9,0.28315]
[1735917130209,1.303,3534.4,3533.8,3.2078]
[1735917131118,0.70781,3534.3,3533.3,3.2078]
[1735917131317,1.303,3534.4,3533.3,3.2078]
[1735917131620,0.70781,3534.3,3533.3,3.2078]
[1735917131814,0.28318,3533.6,3533.3,3.2078]
[1735917132120,1.303,3533.6,3532.8,3.2078]
[1735917132410,40.8,3533.5,3532.6,0.455]
[1735917132616,40.8,3533.5,3532.7,3.2078]
[1735917133318,3.2078,3533.2,3532.7,3.2078]
[1735917133719,0.28322,3533.1,3532.7,3.2078]
[1735917133923,0.28323,3533.0,3532.7,3.2078]
[1735917134216,1.303,3533.6,3532.7,3.2078]
[1735917134412,4.5118,3534.1,3533.1,3.2078]
[1735917134814,4.5118,3534.1,3532.6,0.455]
[1735917134815,4.5118,3534.1,3533.5,3.2078]
[1735917135015,1.304,3534.1,3533.9,3.2078]
[1735917135218,1.304,3534.1,3533.5,3.2078]
[1735917135422,1.304,3534.1,3533.9,3.2078]
[1735917136017,0.28314,3534.0,3533.9,3.2078]
[1735917136315,1.304,3534.1,3532.9,3.2078]
[1735917136618,3.2078,3533.6,3532.9,3.2078]
[1735917136815,3.2078,3533.6,3532.6,0.455]
[1735917136816,12.99186327,3534.0,3532.6,0.455]
[1735917137023,0.70791,3533.8,3532.9,3.2078]
[1735917137225,0.70793,3533.7,3532.9,3.2078]
[1735917137518,0.28322,3533.1,3532.9,3.2078]
[1735917137719,1.304,3533.3,3532.9,3.2078]
[1735917138316,0.70786,3534.1,3533.2,0.2832]
[1735917138516,1.304,3534.1,3533.3,3.2078]
[1735917139119,7.074,3534.8,3533.7,3.2078]
[1735917139325,0.28312,3534.3,3533.8,0.28315]
[1735917139526,0.28313,3534.2,3533.8,0.28316]
[1735917140026,1.304,3534.3,3534.0,0.28314]
[1735917140215,1.304,3534.3,3533.7,3.2078]
[1735917140529,1.304,3534.3,3534.2,3.2078]
[1735917140822,0.28315,3534.0,3533.7,3.2078]
[1735917141028,1.304,3534.3,3533.7,3.2078]
[1735917141414,3.91565,3534.2,3532.9,0.28323]
[1735917141613,0.7079,3533.9,3532.9,0.28323]
[1735917141816,40.8,3533.8,3532.9,0.28323]
[1735917142027,44.0078,3533.8,3532.8,3.49104]
[1735917142322,3.2078,3533.4,3532.6,0.455]
[1735917142519,1.304,3533.3,3532.4,3.2078]
[1735917142722,1.304,3533.3,3532.0,3.2078]
[1735917142723,0.70811,3532.8,3532.0,3.2078]
[1735917143024,3.2078,3532.4,3531.6,3.2078]
[1735917143320,1.304,3532.3,3531.6,3.2078]
[1735917144326,0.28331,3532.0,3531.6,3.2078]
[1735917144531,0.28332,3531.9,3531.6,3.2078]
[1735917145020,0.28332,3531.9,3530.7,0.4539]
[1735917145021,1.304,3532.3,3531.2,3.2078]
[1735917145225,2.77777035,3531.4,3530.2,3.2078]
[1735917145414,0.28341,3530.8,3530.2,3.49125]
[1735917145720,1.304,3531.3,3530.6,3.2078]
[1735917146120,0.70849,3530.9,3529.8,3.2078]
[1735917146325,3.2078,3530.5,3529.7,0.4992]
[1735917146628,3.2078,3530.2,3528.9,3.2078]
[1735917146821,3.2078,3529.8,3528.7,3.2078]
[1735917147031,3.2078,3529.4,3528.7,3.2078]
[1735917147325,0.28355,3529.1,3528.7,3.2078]
[1735917147524,45.3118,3529.3,3528.7,3.2078]
[1735917147726,0.28355,3529.0,3528.7,3.2078]
[1735917147933,2.77777035,3528.8,3527.0,3.2078]
[1735917148223,0.28363,3528.0,3527.4,3.2078]
[1735917148424,2.77777035,3528.6,3527.5,3.2078]
[1735917148624,3.2078,3528.9,3527.9,3.2078]
[1735917148928,3.2078,3528.5,3527.3,0.4539]
[1735917149122,3.2078,3528.4,3527.6,3.2078]
[1735917149323,3.2078,3528.3,3527.3,0.73758]
[1735917149528,3.49141,3528.3,3527.5,0.28366]
[1735917149826,3.2078,3528.3,3527.3,0.4539]
[1735917150027,2.77777035,3528.7,3527.6,3.2078]
[1735917150222,3.2078,3528.6,3527.6,3.2078]
[1735917150528,3.2078,3527.8,3527.0,3.2078]
[1735917150723,1.33,3527.9,3527.0,3.2078]
[1735917151422,1.33,3527.9,3527.1,0.2837]
[1735917151627,1.33,3527.9,3527.0,3.2078]
[1735917151929,1.33,3527.9,3527.4,3.2078]
[1735917152127,1.33,3527.9,3527.4,3.49147]
[1735917152427,1.331,3528.3,3527.4,3.2078]
[1735917152626,0.28363,3528.0,3527.4,3.49147]
[1735917152827,1.331,3528.3,3527.4,3.49147]
[1735917153028,1.331,3528.3,3527.4,3.2078]
[1735917153228,0.28362,3528.2,3527.5,0.28367]
[1735917153530,0.28363,3528.0,3527.4,3.2078]
[1735917153923,0.28361,3528.2,3527.4,3.49147]
[1735917154125,0.28361,3528.2,3526.7,0.4539]
[1735917154126,0.28358,3528.6,3528.0,3.2078]
[1735917154428,1.331,3528.7,3528.0,3.2078]
[1735917154627,0.28359,3528.6,3528.0,3.2078]
[1735917154925,1.331,3529.1,3528.4,3.49139]
[1735917155125,1.331,3529.1,3528.4,3.2078]
[1735917155427,3.2078,3529.4,3528.8,3.2078]
[1735917155628,2.77777035,3529.7,3529.2,3.2078]
[1735917155629,0.28349,3529.7,3529.2,3.2078]
[1735917155825,1.331,3530.0,3529.2,3.2078]
[1735917156125,0.28347,3529.9,3529.3,0.28352]
[1735917156327,1.331,3530.0,3529.2,3.2078]
[1735917156626,1.331,3530.3,3529.7,0.28348]
[1735917156831,1.331,3530.3,3529.9,0.28347]
[1735917157021,0.28343,3530.5,3529.8,0.28348]
[1735917157221,40.8,3530.8,3530.0,3.2078]
[1735917157420,1.61439,3530.9,3530.4,3.2078]
[1735917157627,0.2834,3530.8,3530.4,3.2078]
[1735917157833,0.28345,3530.2,3529.5,0.2835]
[1735917158024,3.2078,3530.6,3529.4,3.2078]
[1735917158224,3.2078,3530.6,3529.9,0.28347]
[1735917158225,3.49122,3530.6,3529.9,0.28347]
[1735917158428,0.28342,3530.6,3529.9,0.28347]
[1735917158734,0.28338,3531.1,3530.2,3.2078]
[1735917159032,0.28338,3531.1,3529.3,1.19849]
[1735917159033,1.331,3531.3,3530.6,3.2078]
[1735917159324,1.61437,3531.3,3530.7,0.28341]
[1735917159526,0.28337,3531.2,3530.6,3.49121]
[1735917159731,1.331,3531.3,3530.6,3.49121]
[1735917159732,1.331,3531.3,3530.8,0.28339]
[1735917160033,1.331,3531.3,3530.9,0.28339]
[1735917160229,1.331,3531.3,3530.8,0.2834]
[1735917160536,1.331,3531.3,3531.0,0.28338]
[1735917160827,1.331,3531.3,3530.7,0.4972]
[1735917161023,1.331,3531.3,3530.8,0.28339]
[1735917161229,0.2834,3530.8,3530.7,0.4972]
[1735917161428,3.2078,3531.4,3530.7,0.4972]
[1735917161827,3.2078,3531.0,3529.8,3.2078]
[1735917162028,3.2078,3531.1,3529.7,3.2078]
[1735917162222,3.2078,3530.7,3529.7,3.2078]
[1735917162424,3.2078,3530.3,3529.4,0.4972]
[1735917162632,3.2078,3530.3,3529.7,3.2078]
[1735917162832,1.331,3530.6,3529.7,3.2078]
[1735917163027,3.2078,3530.9,3530.5,0.28343]
[1735917163229,0.28339,3531.0,3530.5,3.49122]
[1735917163425,0.28339,3530.9,3530.5,3.2078]
[1735917163634,1.331,3531.3,3530.5,3.2078]
[1735917163635,0.2834,3530.8,3530.5,3.2078]
[1735917163832,0.28337,3531.2,3530.6,0.28341]
[1735917164130,3.2078,3531.0,3529.9,0.28347]
[1735917164431,3.2078,3531.0,3529.7,3.2078]
[1735917164627,0.28343,3530.5,3530.0,0.28346]
[1735917164828,3.2078,3531.0,3529.7,3.2078]
[1735917165029,3.2078,3530.6,3529.7,3.2078]
[1735917165227,3.2078,3530.6,3529.9,0.28347]
[1735917165433,0.28344,3530.3,3529.9,0.28347]
[1735917165632,3.2078,3530.6,3529.7,3.2078]
[1735917165927,1.28647761,3538.7,3530.7,0.28341]
[1735917165928,0.28338,3531.1,3530.7,0.28341]
[1735917166133,0.28336,3531.4,3530.7,3.2078]
[1735917166336,0.28336,3531.4,3531.0,0.28338]
[1735917166631,40.8,3531.3,3530.1,3.2078]
[1735917166835,3.2078,3531.2,3530.1,3.2078]
[1735917167034,40.8,3531.3,3530.1,3.2078]
[1735917167328,4.5388,3532.0,3530.9,3.2078]
[1735917167924,40.8,3531.9,3531.6,0.28333]
[1735917168124,40.8,3531.9,3531.3,3.2078]
[1735917168333,0.28335,3531.4,3531.3,3.2078]
[1735917168533,0.28338,3531.1,3530.8,3.2078]
[1735917168733,2.77777035,3531.8,3530.8,3.2078]
[1735917168930,3.06110035,3531.8,3531.3,0.28335]
[1735917169128,3.2078,3532.1,3531.2,3.2078]
[1735917169525,3.2078,3532.1,3531.7,0.28333]
[1735917169735,4.10877035,3532.3,3531.2,3.2078]
[1735917170133,3.2078,3532.1,3531.2,3.2078]
[1735917170430,1.331,3532.3,3531.7,3.2078]
[1735917170831,40.8,3532.7,3531.7,3.2078]
[1735917171131,40.8,3532.7,3531.4,0.70837]
[1735917171132,0.28332,3531.8,3531.4,0.28335]
[1735917171338,3.2078,3532.4,3531.2,0.28337]
[1735917171528,0.28332,3531.8,3531.4,0.28335]
[1735917171838,40.8,3532.2,3531.6,3.2078]
[1735917172130,3.25317035,3532.8,3532.0,3.2078]
[1735917172131,1.331,3532.7,3532.0,3.2078]
[1735917172332,0.28327,3532.4,3532.1,0.28329]
[1735917172535,41.08326,3532.6,3532.3,0.28328]
[1735917172732,1.331,3532.7,3532.0,3.2078]
[1735917172938,0.28327,3532.5,3532.1,0.28329]
[1735917173144,1.331,3532.7,3532.0,3.2078]
[1735917173628,0.4754,3532.8,3532.3,0.28328]
[1735917173828,0.28326,3532.6,3532.0,3.2078]
[1735917174029,1.33,3533.1,3532.0,3.2078]
[1735917174234,3.2078,3532.9,3532.0,3.2078]
[1735917174937,0.28331,3532.0,3531.5,3.2078]
[1735917175139,0.28329,3532.2,3531.8,0.28332]
[1735917175336,3.2078,3533.0,3532.0,3.2078]
[1735917175638,3.2078,3533.0,3532.4,0.28327]
[1735917175639,0.28324,3532.8,3532.4,0.28327]
[1735917175839,1.33,3533.1,3532.0,3.2078]
[1735917176139,0.28325,3532.7,3532.4,0.28327]
[1735917176446,0.28323,3533.0,3532.4,0.28327]
[1735917176636,1.33,3533.1,3532.0,3.2078]
[1735917176831,2.03805,3533.1,3532.2,0.28328]
[1735917177138,0.28328,3532.3,3532.0,3.2078]
[1735917177438,1.33,3533.2,3532.0,3.2078]
[1735917177831,1.33,3533.2,3532.4,3.2078]
[1735917178337,0.28325,3532.7,3532.5,0.28326]
[1735917178527,0.28322,3533.1,3532.8,0.28324]
[1735917178732,0.28324,3532.8,3532.6,0.28325]
[1735917178927,3.2078,3533.2,3532.4,3.2078]
[1735917179330,3.2078,3533.3,3532.4,3.2078]
[1735917179530,0.70803,3533.2,3532.4,3.2078]
[1735917179739,0.28326,3532.5,3532.4,3.2078]
[1735917180236,3.91591,3532.9,3531.6,3.2078]
[1735917180237,3.2078,3532.9,3531.6,3.2078]
[1735917180444,0.28328,3532.4,3532.2,0.28329]
[1735917180632,40.8,3532.5,3532.0,3.2078]
[1735917180933,40.8,3532.5,3531.6,3.2078]
[1735917181133,44.0078,3532.5,3531.6,3.2078]
[1735917181333,0.28332,3531.8,3531.6,3.49113]
[1735917181540,0.5025,3532.4,3531.6,3.2078]
[1735917181741,3.7103,3532.4,3531.6,3.2078]
[1735917181929,0.52104836,3532.3,3531.6,3.2078]
[1735917182134,0.5025,3532.4,3531.6,3.2078]
[1735917182434,0.2833,3532.1,3531.9,0.28331]
[1735917182636,1.02351531,3532.4,3531.6,3.2078]
[1735917182837,0.28329,3532.3,3532.1,0.28329]
[1735917183040,1.02351531,3532.4,3531.6,3.2078]